[Event "Goteborg Open 2024"]
[Site "Goteborgs Schackcentrum, Vegatan 20, Gothenburg, Sweden"]
[Date "2024.08.02"]
[Round "1.19"]
[White "Murugaraja, Yogeshwer"]
[Black "Eldh, Hjalmar"]
[Result "0-1"]
[TimeControl "15 minutes + 5 seconds per move from move one (Round 1 - 4) / 90 minutes + 30 seconds per move from move one (Round 5 - 8)"]
[WhiteElo "1628"]
[BlackElo "1897"]

1. c4 {[%clk 00:15:08]} {[%emt 00:00:01]} Nf6 {[%clk 00:15:09]} {[%emt
00:00:03]} 2. g3 {[%clk 00:15:11]} {[%emt 00:00:01]} g6 {[%clk 00:15:10]}
{[%emt 00:00:04]} 3. Bg2 {[%clk 00:15:12]} {[%emt 00:00:04]} Bg7 {[%clk
00:15:13]} {[%emt 00:00:02]} 4. Nf3 {[%clk 00:15:13]} {[%emt 00:00:04]} d5
{[%clk 00:15:12]} {[%emt 00:00:06]} 5. cxd5 {[%clk 00:15:11]} {[%emt 00:00:07]}
Nxd5 {[%clk 00:15:15]} {[%emt 00:00:02]} 6. O-O {[%clk 00:15:01]} {[%emt
00:00:14]} O-O {[%clk 00:15:17]} {[%emt 00:00:03]} 7. Nc3 {[%clk 00:14:40]}
{[%emt 00:00:27]} a5 {[%clk 00:14:59]} {[%emt 00:00:23]} 8. a3 {[%clk
00:13:41]} {[%emt 00:01:05]} Nc6 {[%clk 00:13:45]} {[%emt 00:01:18]} 9. Qc2
{[%clk 00:12:25]} {[%emt 00:01:21]} Bf5 {[%clk 00:12:11]} {[%emt 00:01:38]} 10.
e4 {[%clk 00:10:39]} {[%emt 00:01:51]} Nxc3 {[%clk 00:12:15]} {[%emt 00:00:02]}
11. bxc3 {[%clk 00:09:36]} {[%emt 00:01:09]} Bg4 {[%clk 00:11:52]} {[%emt
00:00:27]} 12. d4 {[%clk 00:08:55]} {[%emt 00:00:46]} Qd7 {[%clk 00:11:33]}
{[%emt 00:00:23]} 13. Rb1 {[%clk 00:08:28]} {[%emt 00:00:33]} Rfb8 {[%clk
00:11:23]} {[%emt 00:00:15]} 14. Bf4 {[%clk 00:07:53]} {[%emt 00:00:40]} Bxf3
{[%clk 00:10:50]} {[%emt 00:00:38]} 15. Bxf3 {[%clk 00:07:48]} {[%emt
00:00:10]} e5 {[%clk 00:10:51]} {[%emt 00:00:04]} 16. dxe5 {[%clk 00:07:21]}
{[%emt 00:00:33]} Nxe5 {[%clk 00:10:52]} {[%emt 00:00:03]} 17. Bg2 {[%clk
00:07:09]} {[%emt 00:00:16]} Qe7 {[%clk 00:10:13]} {[%emt 00:00:44]} 18. Bxe5
{[%clk 00:06:16]} {[%emt 00:00:58]} Qxe5 {[%clk 00:10:08]} {[%emt 00:00:10]} 19.
c4 {[%clk 00:05:51]} {[%emt 00:00:31]} c6 {[%clk 00:09:36]} {[%emt 00:00:36]}
20. f4 {[%clk 00:05:01]} {[%emt 00:00:56]} Qc5+ {[%clk 00:09:38]} {[%emt
00:00:03]} 21. Kh1 {[%clk 00:04:40]} {[%emt 00:00:27]} Qxa3 {[%clk 00:09:36]}
{[%emt 00:00:05]} 22. Qb3 {[%clk 00:04:12]} {[%emt 00:00:33]} Qxb3 {[%clk
00:08:53]} {[%emt 00:00:49]} 23. Rxb3 {[%clk 00:04:16]} {[%emt 00:00:02]} b5
{[%clk 00:08:52]} {[%emt 00:00:04]} 24. cxb5 {[%clk 00:04:02]} {[%emt
00:00:20]} Rxb5 {[%clk 00:08:44]} {[%emt 00:00:12]} 25. Rfb1 {[%clk 00:03:53]}
{[%emt 00:00:15]} Rxb3 26. Rxb3 {[%clk 00:03:56]} a4 {[%clk 00:08:28]} {[%emt
00:00:02]} 27. Ra3 {[%clk 00:03:26]} {[%emt 00:00:35]} Bb2 {[%clk 00:08:23]}
{[%emt 00:00:11]} 28. Ra2 {[%clk 00:02:44]} {[%emt 00:00:46]} a3 {[%clk
00:08:26]} {[%emt 00:00:02]} 29. e5 {[%clk 00:02:47]} {[%emt 00:00:03]} Rc8
{[%clk 00:08:09]} {[%emt 00:00:10]} 30. Kg1 {[%clk 00:02:30]} {[%emt 00:00:34]}
c5 {[%clk 00:08:08]} {[%emt 00:00:06]} 31. Bh3 {[%clk 00:02:28]} {[%emt
00:00:07]} Rd8 {[%clk 00:05:51]} {[%emt 00:02:22]} 32. Kf2 {[%clk 00:01:32]}
{[%emt 00:01:00]} c4 {[%clk 00:05:45]} {[%emt 00:00:12]} 33. e6 {[%clk
00:01:28]} {[%emt 00:00:09]} c3 {[%clk 00:05:30]} {[%emt 00:00:19]} 34. e7
{[%clk 00:01:25]} {[%emt 00:00:08]} Re8 {[%clk 00:05:28]} {[%emt 00:00:09]} 35.
Bd7 {[%clk 00:01:28]} {[%emt 00:00:02]} Rxe7 {[%clk 00:05:16]} {[%emt
00:00:15]} 36. Ba4 {[%clk 00:01:29]} {[%emt 00:00:04]} Rd7 {[%clk 00:05:09]}
{[%emt 00:00:13]} 37. Bxd7 {[%clk 00:01:01]} {[%emt 00:00:33]} c2 {[%clk
00:05:10]} {[%emt 00:00:03]} 38. Rxa3 {[%clk 00:00:56]} {[%emt 00:00:11]} Bxa3
{[%clk 00:05:12]} {[%emt 00:00:04]} 39. Ba4 {[%clk 00:00:59]} {[%emt 00:00:01]}
c1=Q {[%clk 00:05:13]} {[%emt 00:00:03]} 0-1

[ePGN "0.1;DGT LiveChess/2.2.6"]

[Event "Goteborg Open 2024"]
[Site "Goteborgs Schackcentrum, Vegatan 20, Gothenburg, Sweden"]
[Date "2024.08.02"]
[Round "1.20"]
[White "Garby, Jacob"]
[Black "Israelsson, Lukas"]
[Result "1-0"]
[TimeControl "15 minutes + 5 seconds per move from move one (Round 1 - 4) / 90 minutes + 30 seconds per move from move one (Round 5 - 8)"]
[WhiteElo "1895"]
[BlackElo "1615"]

1. d4 {[%clk 00:15:09]} d5 {[%clk 00:15:03]} {[%emt 00:00:08]} 2. c4 {[%clk
00:15:12]} {[%emt 00:00:01]} c6 {[%clk 00:15:06]} {[%emt 00:00:01]} 3. Nf3
{[%clk 00:15:11]} {[%emt 00:00:07]} Nf6 {[%clk 00:15:09]} {[%emt 00:00:01]} 4.
Nc3 {[%clk 00:15:02]} {[%emt 00:00:14]} g6 {[%clk 00:15:07]} {[%emt 00:00:07]}
5. Bg5 {[%clk 00:14:30]} {[%emt 00:00:37]} Bg7 {[%clk 00:14:07]} {[%emt
00:01:05]} 6. e3 {[%clk 00:13:56]} {[%emt 00:00:40]} O-O {[%clk 00:13:54]}
{[%emt 00:00:17]} 7. Bd3 {[%clk 00:13:16]} {[%emt 00:00:45]} dxc4 {[%clk
00:13:17]} {[%emt 00:00:43]} 8. Bxc4 {[%clk 00:13:08]} {[%emt 00:00:13]} b5
{[%clk 00:13:20]} {[%emt 00:00:02]} 9. Bb3 {[%clk 00:12:51]} {[%emt 00:00:22]}
a5 {[%clk 00:13:01]} {[%emt 00:00:24]} 10. a4 {[%clk 00:12:14]} {[%emt
00:00:42]} b4 {[%clk 00:12:33]} {[%emt 00:00:32]} 11. Bxf6 {[%clk 00:11:53]}
{[%emt 00:00:25]} Bxf6 {[%clk 00:12:02]} {[%emt 00:00:37]} 12. Ne4 {[%clk
00:11:48]} {[%emt 00:00:10]} Ba6 {[%clk 00:11:54]} {[%emt 00:00:14]} 13. Nc5
{[%clk 00:10:26]} {[%emt 00:01:27]} e6 {[%clk 00:10:36]} {[%emt 00:01:23]} 14.
Rc1 {[%clk 00:09:25]} {[%emt 00:01:05]} Qc8 {[%clk 00:09:14]} {[%emt 00:01:27]}
15. Nd2 {[%clk 00:08:22]} {[%emt 00:01:08]} Rd8 {[%clk 00:07:23]} {[%emt
00:01:56]} 16. Qg4 {[%clk 00:08:04]} {[%emt 00:00:24]} e5 {[%clk 00:06:32]}
{[%emt 00:00:55]} 17. Qf3 {[%clk 00:06:38]} {[%emt 00:01:31]} Qf5 {[%clk
00:04:58]} {[%emt 00:01:39]} 18. Qxf5 {[%clk 00:05:53]} {[%emt 00:00:50]} gxf5
{[%clk 00:05:01]} {[%emt 00:00:02]} 19. dxe5 {[%clk 00:05:11]} {[%emt
00:00:48]} Bxe5 {[%clk 00:04:52]} {[%emt 00:00:13]} 20. Rc2 {[%clk 00:03:51]}
{[%emt 00:01:25]} Nd7 {[%clk 00:04:11]} {[%emt 00:00:47]} 21. Nxa6 {[%clk
00:03:34]} {[%emt 00:00:22]} Rxa6 {[%clk 00:04:13]} {[%emt 00:00:03]} 22. Nf3
{[%clk 00:03:18]} {[%emt 00:00:20]} Bg7 {[%clk 00:03:38]} {[%emt 00:00:40]} 23.
O-O {[%clk 00:03:20]} {[%emt 00:00:03]} Ne5 {[%clk 00:03:33]} {[%emt 00:00:10]}
24. Nxe5 {[%clk 00:02:34]} {[%emt 00:00:51]} Bxe5 {[%clk 00:03:36]} {[%emt
00:00:03]} 25. Rfc1 {[%clk 00:02:24]} {[%emt 00:00:16]} Rd6 {[%clk 00:03:04]}
{[%emt 00:00:36]} 26. Bc4 {[%clk 00:02:19]} {[%emt 00:00:10]} Ra7 {[%clk
00:02:49]} {[%emt 00:00:20]} 27. b3 {[%clk 00:02:20]} {[%emt 00:00:04]} Rad7
{[%clk 00:02:43]} {[%emt 00:00:11]} 28. Kf1 {[%emt 00:01:09]} Bxh2 {[%clk
00:02:07]} {[%emt 00:00:14]} 29. g3 {[%clk 00:01:35]} {[%emt 00:00:13]} Rd1+
{[%clk 00:02:08]} {[%emt 00:00:03]} 30. Kg2 {[%clk 00:01:10]} {[%emt 00:00:31]}
Bg1 {[%clk 00:02:03]} {[%emt 00:00:10]} 31. Bf1 {[%clk 00:01:10]} {[%emt
00:00:05]} Bxf2 {[%clk 00:01:47]} {[%emt 00:00:20]} 32. Kxf2 {[%clk 00:01:13]}
{[%emt 00:00:02]} R7d2+ {[%clk 00:01:40]} {[%emt 00:00:13]} 33. Rxd2 {[%clk
00:01:15]} {[%emt 00:00:03]} Rxd2+ {[%clk 00:01:43]} {[%emt 00:00:01]} 34. Kf3
{[%clk 00:01:12]} {[%emt 00:00:08]} Rb2 {[%clk 00:01:45]} {[%emt 00:00:03]} 35.
Bc4 {[%clk 00:01:06]} {[%emt 00:00:10]} Kg7 {[%clk 00:01:42]} {[%emt 00:00:08]}
36. Rd1 {[%clk 00:01:05]} {[%emt 00:00:07]} Rc2 {[%clk 00:01:00]} {[%emt
00:00:47]} 37. g4 {[%clk 00:00:54]} {[%emt 00:00:15]} fxg4+ {[%clk 00:01:00]}
{[%emt 00:00:06]} 38. Kxg4 {[%clk 00:00:56]} {[%emt 00:00:03]} Rc3 {[%clk
00:00:57]} {[%emt 00:00:07]} 39. Kf4 {[%clk 00:00:54]} {[%emt 00:00:06]} Rc2
{[%clk 00:00:48]} {[%emt 00:00:15]} 40. Rd7 {[%clk 00:00:49]} {[%emt 00:00:10]}
Rf2+ {[%clk 00:00:48]} {[%emt 00:00:05]} 41. Kg3 {[%clk 00:00:42]} {[%emt
00:00:12]} Rf6 {[%clk 00:00:49]} {[%emt 00:00:04]} 42. Ra7 {[%clk 00:00:24]}
{[%emt 00:00:23]} Rf5 {[%clk 00:00:52]} {[%emt 00:00:01]} 43. e4 {[%clk
00:00:25]} {[%emt 00:00:05]} Rf6 {[%clk 00:00:26]} {[%emt 00:00:32]} 44. Rxa5
{[%clk 00:00:23]} {[%emt 00:00:06]} Kg6 {[%clk 00:00:25]} {[%emt 00:00:06]} 45.
e5 {[%clk 00:00:17]} {[%emt 00:00:12]} Rf5 {[%clk 00:00:20]} {[%emt 00:00:09]}
46. Bd3 {[%clk 00:00:20]} {[%emt 00:00:02]} Kg5 {[%clk 00:00:23]} {[%emt
00:00:02]} 47. Bxf5 {[%clk 00:00:22]} {[%emt 00:00:03]} Kxf5 {[%clk 00:00:27]}
{[%emt 00:00:02]} 48. Rc5 {[%clk 00:00:25]} h5 {[%clk 00:00:28]} {[%emt
00:00:04]} 49. a5 {[%clk 00:00:27]} {[%emt 00:00:03]} h4+ {[%emt 00:00:05]} 50.
Kxh4 {[%clk 00:00:28]} {[%emt 00:00:02]} Kf4 {[%clk 00:00:34]} {[%emt
00:00:01]} 51. a6 {[%clk 00:00:28]} {[%emt 00:00:05]} 1-0

[ePGN "0.1;DGT LiveChess/2.2.6"]